fUSD/lending_fUSD_20260219
["ID","MTS","AMOUNT","RATE_DAILY","PERIOD"]
[405981295,1771491269314,-201.47,0.00044544,30]
[405981296,1771491269339,-150.0,0.00044544,30]
[405981297,1771491269363,-562.33,0.00044544,30]
[405981298,1771491269388,-150.0,0.00044544,30]
[405981299,1771491269412,-2389.28485648,0.00044544,120]
[405981300,1771491269437,-476.49,0.00044544,30]
[405981301,1771491269462,-150.0,0.00044544,30]
[405981302,1771491269489,-471.58,0.00044544,30]
[405981303,1771491269513,-181.03,0.00044544,30]
[405981304,1771491269538,-150.0,0.00044544,30]
[405981305,1771491269562,-150.0,0.00044544,30]
[405981306,1771491269586,-201.47,0.00044544,30]
[405981307,1771491269609,-562.21,0.00044544,30]
[405981308,1771491269634,-150.0,0.00044544,30]
[405981309,1771491269659,-151.25,0.00044544,30]
[405981310,1771491269684,-560.22,0.00044544,30]
[405981311,1771491269716,-150.0,0.00044544,30]
[405981312,1771491269741,-560.22,0.00044544,30]
[405981313,1771491269766,-181.03,0.00044544,30]
[405981314,1771491269790,-561.74,0.00044544,30]
[405981315,1771491269813,-471.58,0.00044544,30]
[405981316,1771491269837,-476.49,0.00044544,30]
[405981317,1771491269861,-150.0,0.00044544,30]
[405981318,1771491269885,-201.47,0.00044544,30]
[405981319,1771491269910,-150.0,0.00044544,30]
[405981320,1771491269935,-150.0,0.00044544,30]
[405981321,1771491269960,-562.33,0.00044544,30]
[405981322,1771491269984,-180.99,0.00044544,30]
[405981323,1771491270010,-203.28,0.00044544,30]
[405981324,1771491270033,-150.0,0.00044544,30]
[405981325,1771491270063,-560.34,0.00044544,30]
[405981326,1771491270088,-150.0,0.00044544,30]
[405981327,1771491270114,-150.0,0.00044544,30]
[405981328,1771491270144,-181.03,0.00044544,30]
[405981329,1771491270170,-480.62,0.00044544,30]
[405981330,1771491270194,-150.0,0.00044544,30]
[405981331,1771491270412,-560.22,0.00044544,30]
[405981332,1771491270439,-476.49,0.00044544,30]
[405981333,1771491270464,-562.33,0.00044544,30]
[405981334,1771491270490,-201.47,0.00044544,30]
[405981335,1771491270514,-150.0,0.00044544,30]
[405981336,1771491270538,-1240.28,0.00044544,30]
[405981337,1771491270562,-150.56,0.00044544,30]
[405981338,1771491270586,-150.0,0.00044544,30]
[405981339,1771491270611,-201.47,0.00044544,30]
[405981340,1771491270635,-471.58,0.00044544,30]
[405981341,1771491270661,-560.22,0.00044544,30]
[405981342,1771491270688,-150.75,0.00044544,30]
[405981343,1771491270719,-476.2,0.00044544,30]
[405981344,1771491270745,-181.03,0.00044544,30]
[405981345,1771491270769,-150.0,0.00044544,30]
[405981346,1771491270795,-573.65,0.00044544,30]
[405981347,1771491270820,-181.03,0.00044544,30]
[405981348,1771491270845,-471.58,0.00044544,30]
[405981349,1771491270869,-151.32,0.00044544,30]
[405981350,1771491270895,-476.49,0.00044544,30]
[405981351,1771491270921,-150.0,0.00044544,30]
[405981352,1771491270945,-201.47,0.00044544,30]
[405981353,1771491270970,-560.22,0.00044544,30]
[405981354,1771491270995,-562.33,0.00044544,30]
[405981355,1771491271019,-150.0,0.00044544,30]
[405981356,1771491271043,-471.58,0.00044544,30]
[405981357,1771491271069,-201.39,0.00044544,30]
[405981358,1771491271094,-150.0,0.00044544,30]
[405981359,1771491271119,-562.33,0.00044544,30]
[405981360,1771491271148,-150.0,0.00044544,30]
[405981361,1771491271173,-476.59,0.00044544,30]
[405981362,1771491271198,-471.69,0.00044544,30]
[405981363,1771491271222,-150.0,0.00044544,30]
[405981364,1771491271247,-150.0,0.00044544,30]
[405981365,1771491271272,-169.51,0.00044544,30]
[405981366,1771491271297,-180.75,0.00044544,30]
[405981367,1771491271324,-201.38,0.00044544,30]
[405981368,1771491271351,-560.22,0.00044544,30]
[405981369,1771491271379,-150.15,0.00044544,30]
[405981370,1771491271405,-150.0,0.00044544,30]
[405981371,1771491271431,-201.47,0.00044544,30]
[405981372,1771491271458,-471.58,0.00044544,30]
[405981373,1771491271485,-476.49,0.00044544,30]
[405981374,1771491271511,-184.39,0.00044544,30]
[405981375,1771491271536,-560.22,0.00044544,30]
[405981376,1771491271563,-561.78,0.00044544,30]
[405981377,1771491271587,-150.0,0.00044544,30]
[405981378,1771491271613,-201.47,0.00044544,30]
[405981379,1771491271638,-181.03,0.00044544,30]
[405981380,1771491271662,-150.0,0.00044544,30]
[405981381,1771491271686,-150.0,0.00044544,30]
[405981382,1771491271711,-562.33,0.00044544,30]
[405981383,1771491271735,-473.32,0.00044544,30]
[405981384,1771491271760,-476.49,0.00044544,30]
[405981385,1771491271784,-201.47,0.00044544,30]
[405981386,1771491271809,-562.33,0.00044544,30]
[405981387,1771491271833,-150.0,0.00044544,30]
[405981388,1771491271870,-150.0,0.00044544,30]
[405981389,1771491271897,-150.17,0.00044544,30]
[405981390,1771491271924,-181.03,0.00044544,30]
[405981391,1771491271950,-277.26,0.00044544,30]
[405981392,1771491271976,-562.33,0.00044544,30]
[405981393,1771491272001,-201.47,0.00044544,30]
[405981394,1771491272027,-560.22,0.00044544,30]
[405981395,1771491272052,-150.0,0.00044544,30]
[405981396,1771491272079,-150.0,0.00044544,30]
[405981397,1771491272105,-150.0,0.00044544,30]
[405981398,1771491272131,-471.58,0.00044544,30]
[405981399,1771491272546,1400.10039658,0.00044544,30]
[405981400,1771491272580,440.12786594,0.00044544,60]
[405981401,1771491289811,-470.13,0.00019178,30]
[405981402,1771491289841,-246.12796453,0.00021481,32]
[405981403,1771491289867,-470.13,0.00021526,30]
[405981404,1771491289896,-246.12796453,0.00022662,48]
[405981405,1771491289923,-3527.46594763,0.00023,120]
[405981406,1771491289949,-244.76652229,0.00023252,56]
[405981407,1771491289975,-246.12796453,0.00023842,63]
[405981408,1771491290004,-470.13,0.00023875,30]
[405981409,1771491290032,-246.12796453,0.00025023,79]
[405981410,1771491290060,-246.12796453,0.00026203,94]
[405981411,1771491290087,-470.13,0.00026223,30]
[405981412,1771491290112,-246.12796451,0.00026586,120]
[405981413,1771491290140,-244.76652229,0.00027384,110]
[405981414,1771491290166,-470.13,0.00028571,30]
[405981415,1771491290192,-470.13,0.0003092,30]
[405981416,1771491290218,-1000.0,0.00032,120]
[405981417,1771491290246,-1024.1,0.00032,120]
[405981418,1771491290272,-470.13,0.00033268,30]
[405981419,1771491290297,-554.887,0.00033885,37]
[405981420,1771491290323,-153.0,0.00034072,120]
[405981421,1771491290348,-2571.61386303,0.00035,30]
[405981422,1771491290372,-151.0,0.00035,31]
[405981423,1771491290397,-218.439641,0.00035,31]
[405981424,1771491290422,-154.206745,0.00035,31]
[405981425,1771491290449,-1724.884571,0.00035,31]
[405981426,1771491290476,-1724.884571,0.00035,31]
[405981427,1771491290501,-151.0,0.00035,31]
[405981428,1771491290525,-1724.884571,0.00035,31]
[405981429,1771491290550,-169.736771,0.00035,31]
[405981430,1771491290575,-1724.884571,0.00035,31]
[405981431,1771491290602,-386.12842,0.00035,31]
[405981432,1771491290629,-386.12842,0.00035,31]
[405981433,1771491290656,-386.12842,0.00035,31]
[405981434,1771491290684,-386.128421,0.00035,31]
[405981435,1771491290713,-1486.19757,0.0003561,31]
[405981436,1771491290740,-1486.19757,0.0003561,31]
[405981437,1771491290765,-1486.19757,0.0003561,31]
[405981438,1771491290791,-1486.197562,0.0003561,31]
[405981439,1771491290815,-470.13,0.00035616,30]
[405981440,1771491290841,-1444.0,0.00037753,120]
[405981441,1771491290866,-470.13,0.00037965,30]
[405981442,1771491290892,-1999.0,0.00038356,120]
[405981443,1771491290919,-1999.0,0.00038904,120]
[405981444,1771491290944,-1999.0,0.00039452,120]
[405981445,1771491290969,-6710.41250949,0.0004,120]
[405981446,1771491290995,-1217.7207218,0.0004,120]
[405981447,1771491291031,-470.13,0.00040313,30]
[405981448,1771491291055,-563.014022,0.00040822,120]
[405981449,1771491291085,-563.014022,0.00040822,120]
[405981450,1771491291108,-563.014022,0.00040822,120]
[405981451,1771491291133,-563.014022,0.00040822,120]
[405981452,1771491291169,-238.710396,0.00040822,120]
[405981453,1771491291194,-3762.084817,0.00040822,120]
[405981454,1771491291219,-3762.084817,0.00040822,120]
[405981455,1771491291245,-3762.084817,0.00040822,120]
[405981456,1771491291270,-3762.084817,0.00040822,120]
[405981457,1771491291296,-3762.084817,0.00040822,120]
[405981458,1771491291322,-3762.084817,0.00040822,120]
[405981459,1771491291347,-3762.084817,0.00040822,120]
[405981460,1771491291377,-3762.084817,0.00040822,120]
[405981461,1771491291405,-3762.084817,0.00040822,120]
[405981462,1771491291432,-3762.084817,0.00040822,120]
[405981463,1771491291460,-3762.084817,0.00040822,120]
[405981464,1771491291486,-3762.084817,0.00040822,120]
[405981465,1771491291512,-3762.084817,0.00040822,120]
[405981466,1771491291538,-3762.084817,0.00040822,120]
[405981467,1771491291564,-3762.084817,0.00040822,120]
[405981468,1771491291590,-3762.084817,0.00040822,120]
[405981469,1771491291618,-3762.084817,0.00040822,120]
[405981470,1771491291644,-3762.084817,0.00040822,120]
[405981471,1771491291670,-3762.084817,0.00040822,120]
[405981472,1771491291696,-3762.084824,0.00040822,120]
[405981473,1771491291723,-372.02,0.000409,30]
[405981474,1771491291982,-841.0,0.00041096,120]
[405981475,1771491292006,-50000.0,0.00041096,120]
[405981476,1771491292031,-4492.71,0.00041096,120]
[405981477,1771491292056,-150.0,0.00041188,60]
[405981478,1771491292084,-841.0,0.0004137,120]
[405981479,1771491292110,-200.0,0.00041423,120]
[405981480,1771491292136,-841.0,0.00041644,120]
[405981481,1771491292160,-1536.61,0.00041882,120]
[405981482,1771491292185,-841.0,0.00041918,120]
[405981483,1771491292212,-167.1796884,0.00042,30]
[405981484,1771491292237,-500.0,0.00042,120]
[405981485,1771491292261,-841.0,0.00042192,120]
[405981486,1771491292286,-500.0,0.00042438,120]
[405981487,1771491292310,-841.0,0.00042466,120]
[405981488,1771491292335,-6312.7368993,0.00042475,120]
[405981489,1771491292359,-500.0,0.000425,120]
[405981490,1771491292384,-500.0,0.00042575,120]
[405981491,1771491292408,-168.06204034,0.00042603,120]
[405981492,1771491292436,-150.0,0.00042643,120]
[405981493,1771491292462,-470.13,0.00042661,120]
[405981494,1771491292488,-500.0,0.00042712,120]
[405981495,1771491292513,-150.0,0.00042715,120]
[405981496,1771491292539,-841.0,0.0004274,120]
[405981497,1771491292563,-39906.71341819,0.000428,60]
[405981498,1771491292587,-500.0,0.00042849,120]
[405981499,1771491292612,-200.0,0.00042864,120]
[405981500,1771491292636,-600.0,0.0004287,60]
[405981501,1771491292661,-500.0,0.0004287,60]
[405981502,1771491292686,-500.0,0.0004287,60]
[405981503,1771491292711,-23297.46187104,0.000429,120]
[405981504,1771491292735,-287.5801097,0.00042986,120]
[405981505,1771491292759,-149665.4556825,0.00043,120]
[405981506,1771491292785,-589.55225714,0.00043,120]
[405981507,1771491292809,-160.0,0.00043,90]
[405981508,1771491292834,-500.0,0.00043,120]
[405981509,1771491292857,-841.0,0.00043014,120]
[405981510,1771491292881,-208561.29879909,0.000431,120]
[405981511,1771491292919,-841.0,0.00043288,120]
[405981512,1771491292945,-600.0,0.00043418,60]
[405981513,1771491292970,-500.0,0.000435,120]
[405981514,1771491292994,-500.0,0.0004351,30]
[405981515,1771491293019,-500.0,0.0004351,60]
[405981516,1771491293044,-500.0,0.0004351,60]
[405981517,1771491293075,-354.25342977,0.0004351,60]
[405981518,1771491293104,-500.0,0.0004351,30]
[405981519,1771491293130,-841.0,0.00043562,120]
[405981520,1771491293155,-150.0,0.00043653,120]
[405981521,1771491293180,-294.612,0.00043653,30]
[405981522,1771491293205,-500.0,0.00043835,120]
[405981523,1771491293230,-500.0,0.00043835,120]
[405981524,1771491293256,-500.0,0.00043835,120]
[405981525,1771491293287,-500.0,0.00043835,120]
[405981526,1771491293313,-500.0,0.00043835,120]
[405981527,1771491293343,-500.0,0.00043835,120]
[405981528,1771491293368,-500.0,0.00043835,120]
[405981529,1771491293394,-500.0,0.00043835,120]
[405981530,1771491293430,-500.0,0.00043835,120]
[405981531,1771491293456,-500.0,0.00043835,120]
[405981532,1771491293482,-500.0,0.00043835,120]
[405981533,1771491293508,-500.0,0.00043835,120]
[405981534,1771491293534,-500.0,0.00043835,120]
[405981535,1771491293560,-372.72895019,0.00043835,120]
[405981536,1771491293589,-534.88786444,0.00043835,120]
[405981537,1771491293614,-583.77577716,0.00043835,120]
[405981538,1771491293639,-500.0,0.00043835,120]
[405981539,1771491293665,-500.0,0.00043835,120]
[405981540,1771491293692,-500.0,0.00043835,120]
[405981541,1771491293718,-500.0,0.00043835,120]
[405981542,1771491293744,-500.0,0.00043835,120]
[405981543,1771491293769,-645.15534108,0.00043835,120]
[405981544,1771491293795,-841.0,0.00043836,120]
[405981545,1771491293820,-14264.45712479,0.000439,120]
[405981546,1771491293847,-754.0,0.00043945,30]
[405981547,1771491293873,-600.0,0.00043966,60]
[405981548,1771491293898,-500.0,0.00043966,60]
[405981549,1771491293922,-500.0,0.00043966,60]
[405981550,1771491293948,-1525.0,0.00044,120]
[405981551,1771491293974,-500.0,0.00044,120]
[405981552,1771491294000,-2110.0,0.00044014,30]
[405981553,1771491294026,-2000.0,0.0004405,120]
[405981554,1771491294052,-2000.0,0.0004405,120]
[405981555,1771491294080,-2000.0,0.0004405,120]
[405981556,1771491294107,-2000.0,0.0004405,120]
[405981557,1771491294134,-2000.0,0.0004405,120]
[405981558,1771491294160,-841.0,0.0004411,120]
[405981559,1771491294186,-150.0,0.0004411,60]
[405981560,1771491294221,-150.0,0.0004411,60]
[405981561,1771491294246,-150.0,0.0004411,60]
[405981562,1771491294270,-150.0,0.0004411,60]
[405981563,1771491294294,-150.0,0.0004411,60]
[405981564,1771491294319,-500.0,0.0004411,60]
[405981565,1771491294344,-150.0,0.0004411,60]
[405981566,1771491294368,-150.0,0.0004411,60]
[405981567,1771491294394,-150.0,0.0004411,60]
[405981568,1771491294419,-150.0,0.0004411,60]
[405981569,1771491294443,-150.0,0.0004411,60]
[405981570,1771491294468,-500.0,0.0004411,60]
[405981571,1771491294494,-150.0,0.0004411,60]
[405981572,1771491294518,-500.0,0.0004411,120]
[405981573,1771491294543,-1444.0,0.00044164,120]
[405981574,1771491294566,-150.0,0.00044165,60]
[405981575,1771491294590,-150.0,0.00044165,60]
[405981576,1771491294614,-150.0,0.00044165,60]
[405981577,1771491294638,-150.0,0.00044165,60]
[405981578,1771491294836,-500.0,0.00044165,60]
[405981579,1771491294864,-150.0,0.00044165,60]
[405981580,1771491294890,-150.0,0.00044165,60]
[405981581,1771491294919,-150.0,0.00044165,60]
[405981582,1771491294946,-150.0,0.00044165,60]
[405981583,1771491294971,-500.0,0.00044165,60]
[405981584,1771491294998,-150.0,0.00044165,60]
[405981585,1771491295026,-500.0,0.00044165,120]
[405981586,1771491295050,-200.0,0.0004422,60]
[405981587,1771491295078,-150.0,0.0004422,60]
[405981588,1771491295104,-150.0,0.0004422,60]
[405981589,1771491295129,-150.0,0.0004422,60]
[405981590,1771491295154,-176.0,0.0004422,60]
[405981591,1771491295179,-150.0,0.0004422,60]
[405981592,1771491295203,-200.0,0.0004422,60]
[405981593,1771491295227,-150.0,0.0004422,60]
[405981594,1771491295252,-150.0,0.0004422,60]
[405981595,1771491295277,-500.0,0.0004422,60]
[405981596,1771491295301,-200.0,0.0004422,60]
[405981597,1771491295325,-500.0,0.0004422,120]
[405981598,1771491295353,-150.0,0.00044274,60]
[405981599,1771491295379,-150.0,0.00044274,60]
[405981600,1771491295406,-150.0,0.00044274,60]
[405981601,1771491295433,-150.0,0.00044274,60]
[405981602,1771491295460,-150.0,0.00044274,60]
[405981603,1771491295487,-150.0,0.00044274,60]
[405981604,1771491295512,-500.0,0.00044274,60]
[405981605,1771491295539,-500.0,0.00044274,120]
[405981606,1771491295565,-200.0,0.00044306,120]
[405981607,1771491295590,-150.0,0.00044329,60]
[405981608,1771491295616,-150.0,0.00044329,60]
[405981609,1771491295643,-150.0,0.00044329,60]
[405981610,1771491295670,-150.0,0.00044329,60]
[405981611,1771491295698,-194.0,0.00044329,60]
[405981612,1771491295725,-275.0,0.00044329,60]
[405981613,1771491295752,-500.0,0.00044329,60]
[405981614,1771491295776,-152.37816409,0.00044329,120]
[405981615,1771491295801,-3000.89873255,0.0004435,90]
[405981616,1771491295826,-841.0,0.00044384,120]
[405981617,1771491295851,-250.0,0.00044384,60]
[405981618,1771491295875,-250.0,0.00044384,60]
[405981619,1771491295899,-250.0,0.00044384,60]
[405981620,1771491295923,-225.0,0.00044384,60]
[405981621,1771491295948,-500.0,0.00044384,60]
[405981622,1771491295972,-5066.63604413,0.000444,120]
[405981623,1771491295996,-150.0,0.000444,120]
[405981624,1771491296020,-150.0,0.000444,120]
[405981625,1771491296044,-151.61936398,0.000444,120]
[405981626,1771491296070,-150.0,0.000444,120]
[405981627,1771491296095,-150.0,0.000444,120]
[405981628,1771491296124,-620.6458252,0.00044439,60]
[405981629,1771491296151,-300.191611,0.00044453,120]
[405981630,1771491296176,-100058.95325448,0.0004446,120]
[405981631,1771491296201,-2000.0,0.00044493,120]
[405981632,1771491296226,-2000.0,0.00044493,120]
[405981633,1771491296251,-2000.0,0.00044493,120]
[405981634,1771491296275,-2000.0,0.00044493,120]
[405981635,1771491296300,-884.159,0.00044493,120]
[405981636,1771491296324,-1000.0,0.00044493,90]
[405981637,1771491296348,-1000.0,0.00044493,90]
[405981638,1771491296374,-1000.0,0.00044493,90]
[405981639,1771491296400,-1000.0,0.00044493,90]
[405981640,1771491296427,-1000.0,0.00044493,90]
[405981641,1771491296453,-1000.0,0.00044493,90]
[405981642,1771491296479,-1000.0,0.00044493,90]
[405981643,1771491296505,-256.25843874,0.000445,120]
[405981644,1771491296530,-194.20665634,0.000445,120]
[405981645,1771491296556,-188.1828345,0.000445,120]
[405981646,1771491296582,-169.21264624,0.000445,120]
[405981647,1771491296607,-274.78625877,0.000445,120]
[405981648,1771491296632,-190.56469144,0.000445,120]
[405981649,1771491296657,-1042.11084115,0.000445,120]
[405981650,1771491296681,-210.4,0.000445,30]
[405981651,1771491296705,-154.7,0.000445,79]
[405981652,1771491296740,-500.0,0.000445,120]
[405981653,1771491296770,-2000.0,0.000445,120]
[405981654,1771491296800,-600.0,0.00044514,60]
[405981655,1771491296832,-789.0,0.00044514,60]
[405981656,1771491296862,-789.0,0.00044514,60]
[405981657,1771491296894,-789.0,0.00044514,60]
[405981658,1771491296924,-789.0,0.00044514,60]
[405981659,1771491296953,-789.0,0.00044514,60]
[405981660,1771491296985,-789.0,0.00044514,60]
[405981661,1771491297017,-213.06225705,0.00044514,60]
[405981662,1771491297049,-789.0,0.00044514,60]
[405981663,1771491297087,-789.0,0.00044514,60]
[405981664,1771491297120,-789.0,0.00044514,60]
[405981665,1771491297151,-789.0,0.00044514,60]
[405981666,1771491297180,-789.0,0.00044514,60]
[405981667,1771491297210,-789.0,0.00044514,60]
[405981668,1771491297239,-789.0,0.00044514,60]
[405981669,1771491297271,-789.0,0.00044514,60]
[405981670,1771491297302,-789.0,0.00044514,60]
[405981671,1771491297334,-789.0,0.00044514,60]
[405981672,1771491297365,-789.0,0.00044514,60]
[405981673,1771491297397,-789.0,0.00044514,60]
[405981674,1771491297433,-789.0,0.00044514,60]
[405981675,1771491297463,-2110.0,0.00044514,30]
[405981676,1771491297491,-151.0,0.00044536,120]
[405981677,1771491297526,-563.014022,0.00044536,120]
[405981678,1771491297557,-563.014022,0.00044536,120]
[405981679,1771491297586,-563.014022,0.00044536,120]
[405981680,1771491297616,-563.014022,0.00044536,120]
[405981681,1771491297645,-1724.884571,0.00044536,120]
[405981682,1771491297674,-1724.884571,0.00044536,120]
[405981683,1771491297703,-151.0,0.00044536,120]
[405981684,1771491297733,-1724.884571,0.00044536,120]
[405981685,1771491297763,-1724.884571,0.00044536,120]
[405981686,1771491297794,-200.0,0.0004454,60]
[405981687,1771491297839,-563.014022,0.00044544,120]
[405981688,1771491297870,-563.014022,0.00044544,120]
[405981689,1771491297902,-563.014022,0.00044544,120]
[405981690,1771491297934,-563.014022,0.00044544,120]
[405981691,1771491297965,-563.014022,0.00044544,120]
[405981692,1771491297997,-563.014022,0.00044544,120]
[405981693,1771491298027,-563.014022,0.00044544,120]
[405981694,1771491298063,-563.014022,0.00044544,120]
[405981695,1771491298097,-563.014022,0.00044544,120]
[405981696,1771491298128,-563.014022,0.00044544,120]
[405981697,1771491298159,-563.014022,0.00044544,120]
[405981698,1771491298189,-563.014023,0.00044544,120]
[405981699,1771491298224,-1724.884571,0.00044544,120]
[405981700,1771491298253,-1724.884571,0.00044544,120]
[405981701,1771491298283,-1724.884571,0.00044544,120]
[405981702,1771491298315,-1724.884571,0.00044544,120]
[405981703,1771491298348,-1724.884571,0.00044544,120]
[405981704,1771491298381,-151.0,0.00044544,120]
[405981705,1771491298414,-1724.884571,0.00044544,120]
[405981706,1771491298444,-151.0,0.00044544,120]
[405981707,1771491298470,-151.0,0.00044544,120]
[405981708,1771491298496,-1724.884571,0.00044544,120]
[405981709,1771491298522,-1724.884571,0.00044544,120]
[405981710,1771491298548,-1724.884571,0.00044544,120]
[405981711,1771491298574,-1724.884571,0.00044544,120]
[405981712,1771491298599,-1724.884571,0.00044544,120]
[405981713,1771491298625,-1724.884577,0.00044544,120]
[405981714,1771491298651,-352.09461882,0.00044544,30]
[405981715,1771491298677,-467.0,0.00044544,60]
[405981716,1771491298702,-1369.2,0.00044544,120]
[405981717,1771491298727,-278.97230408,0.00044545,30]
[405981718,1771491298752,-278.97230408,0.00044545,30]
[405981719,1771491298776,-173.58193386,0.00044545,30]
[405981720,1771491298801,-173.58193386,0.00044545,30]
[405981721,1771491298826,-151.0,0.00044545,120]
[405981722,1771491298851,-235.93633334,0.00044545,120]
[405981723,1771491299128,-393.0,0.0004455,120]
[405981724,1771491299158,-488.81,0.00044585,120]
[405981725,1771491299184,-169.99,0.000446,30]
[405981726,1771491299211,-190.33,0.00044607,120]
[405981727,1771491299237,-150.0,0.0004462,120]
[405981728,1771491299262,-1105.0,0.00044631,30]
[405981729,1771491299286,-472.7425,0.00044657,120]
[405981730,1771491299312,-841.0,0.00044658,120]
[405981731,1771491299341,-488.81,0.00044685,120]
[405981732,1771491299367,-372.02,0.000447,30]
[405981733,1771491299393,-190.33,0.00044707,120]
[405981734,1771491299420,-488.81,0.00044785,120]
[405981735,1771491299448,-190.33,0.00044807,120]
[405981736,1771491299474,-160.0,0.00044877,90]
[405981737,1771491299501,-488.91238443,0.00044885,120]
[405981738,1771491299529,-151.0,0.000449,120]
[405981739,1771491299556,-190.33,0.00044907,120]
[405981740,1771491299584,-841.0,0.00044932,120]
[405981741,1771491299608,-3149.94,0.00044932,120]
[405981742,1771491299632,-214.0,0.0004496,30]
[405981743,1771491299657,-1000.0,0.00044999,120]
[405981744,1771491299684,-50000.0,0.00045,63]
[405981745,1771491299710,-600.0,0.00045,120]
[405981746,1771491299736,-2177.11060289,0.00045,120]
[405981747,1771491299764,-744.89380258,0.00045,120]
[405981748,1771491299790,-1378.3296883,0.00045,120]
[405981749,1771491299818,-1304.665806,0.00045,120]
[405981750,1771491299844,-1075.19497157,0.00045,120]
[405981751,1771491299868,-552.09387749,0.00045,120]
[405981752,1771491299892,-1264.07324498,0.00045,120]
[405981753,1771491299917,-963.52131851,0.00045,30]
[405981754,1771491299942,-222.570688,0.00045,30]
[405981755,1771491299966,-1142.6456089,0.00045,32]
[405981756,1771491299993,-872.21499182,0.00045,120]
[405981757,1771491300020,-345.35076563,0.00045,30]
[405981758,1771491300045,-381.03045455,0.00045,120]
[405981759,1771491300070,-151.96653267,0.00045,30]
[405981760,1771491300095,-1028.11229718,0.00045,120]
[405981761,1771491300120,-1049.92058381,0.00045,120]
[405981762,1771491300145,-8748.27,0.00045,120]
[405981763,1771491300169,-311.66,0.00045,120]
[405981764,1771491300198,-1002.0,0.00045,120]
[405981765,1771491300224,-177.0,0.00045,120]
[405981766,1771491300250,-629.6659845,0.00045,30]
[405981767,1771491300275,-150.0,0.00045,120]
[405981768,1771491300301,-1000.0,0.00045,120]
[405981769,1771491300328,-1091.25960961,0.00045,120]
[405981770,1771491300353,-160.5,0.00045,85]
[405981771,1771491300378,-3947.0,0.00045,120]
[405981772,1771491300406,-150.0,0.00045,120]
[405981773,1771491300431,-864.62006602,0.00045,120]
[405981774,1771491300457,-1079.0,0.00045,120]
[405981775,1771491300486,-1078.0,0.00045,120]
[405981776,1771491300515,-2156.0,0.00045,120]
[405981777,1771491300539,-173.66088786,0.00045,30]
[405981778,1771491300564,-160.0,0.00045,30]
[405981779,1771491300588,-500.0,0.00045,120]
[405981780,1771491300615,-6571.9335343,0.00045,120]
[405981781,1771491300641,-240.46,0.00045,120]
[405981782,1771491300666,-21081.52,0.00045,120]
[405981783,1771491300697,-190.33,0.00045007,120]
[405981784,1771491300724,-470.13,0.0004501,120]
[405981785,1771491300750,-2110.0,0.00045014,30]
[405981786,1771491300775,-600.0,0.00045062,60]
[405981787,1771491300800,-535.0488596,0.00045062,60]
[405981788,1771491300825,-511.75122359,0.00045062,60]
[405981789,1771491300852,-190.33,0.00045107,120]
[405981790,1771491300878,-150.0,0.00045131,120]
[405981791,1771491300903,-841.0,0.00045205,120]
[405981792,1771491300929,-190.33,0.00045207,120]
[405981793,1771491300953,-1217.96,0.000453,120]
[405981794,1771491300982,-1217.96,0.000453,120]